fUST/lending_fUST_20250323
["ID","MTS","AMOUNT","RATE_DAILY","PERIOD"]
[356556006,1742659538197,-5000.0,0.00028316,2]
[356556007,1742659538220,-22.4042719,0.00030252,2]
[356556009,1742659612129,-172.60853482,0.00030253,2]
[356556067,1742659838238,-1683.09599359,0.00030253,2]
[356556198,1742659846031,-875.68543169,0.00030253,2]
[356556199,1742659846040,-153.95064,0.00030814,14]
[356556200,1742659846051,-604.61764367,0.000309,5]
[356556201,1742659846060,-404.712,0.00031481,2]
[356556202,1742659846070,-604.61764339,0.00031555,6]
[356556203,1742659846080,-400.0,0.0003161,2]
[356556204,1742659846090,-193.11839616,0.00031611,2]
[356556205,1742659846099,-418.12010506,0.00031626,2]
[356556206,1742659846109,-160.0,0.00031627,2]
[356556207,1742659846118,-207.68211964,0.00031701,2]
[356556208,1742659846129,-179.42380358,0.0003171,2]
[356556209,1742659846138,-634.1,0.0003171,2]
[356556210,1742659846148,-12719.02,0.0003171,2]
[356556211,1742659846157,-500.0,0.0003171,2]
[356556212,1742659846167,-3159.41,0.0003171,2]
[356556213,1742659846177,-506.66986339,0.0003171,2]
[356556214,1742659846186,-500.0,0.0003171,2]
[356556215,1742659846196,-505.35577682,0.0003171,2]
[356556217,1742659846205,-270.13906761,0.0003171,2]
[356556219,1742659846214,-500.0,0.0003171,2]
[356556221,1742659846223,-500.0,0.0003171,2]
[356556223,1742659846232,-500.0,0.0003171,2]
[356556225,1742659846242,-500.0,0.0003171,2]
[356556226,1742659846250,-3243.39,0.0003171,2]
[356556227,1742659846259,-500.0,0.0003171,2]
[356556228,1742659846268,-500.0,0.0003171,2]
[356556229,1742659846277,-505.29467378,0.0003171,2]
[356556230,1742659846286,-833.82,0.0003171,2]
[356556231,1742659846296,-500.0,0.0003171,2]
[356556232,1742659846305,-500.0,0.0003171,2]
[356556233,1742659846315,-59989.71761169,0.00031711,2]
[356556234,1742659846326,-12839.76545184,0.00031711,2]
[356556267,1742661011901,-158.6305,0.00030445,2]
[356556269,1742661020260,-287.02753544,0.00030445,2]
[356556270,1742661028975,425.07564928,0.00024953,2]
[356556296,1742661038175,-297.35434046,0.00030445,2]
[356556297,1742661038186,-153.95064,0.00030814,14]
[356556298,1742661038197,-150.0,0.00031439,2]
[356556299,1742661038208,-630.73978253,0.00031508,2]
[356556300,1742661038231,-1479.75375551,0.00031508,2]
[356556301,1742661038241,-154.49471692,0.00031508,2]
[356556302,1742661038252,-154.49471692,0.00031509,2]
[356556303,1742661038262,-154.49471692,0.00031509,2]
[356556304,1742661038274,-154.49471692,0.0003151,2]
[356556305,1742661038285,-154.49471692,0.0003151,2]
[356556306,1742661038295,-243.77265989,0.00031511,2]
[356556307,1742661038307,-1240.86569641,0.00031511,2]
[356556308,1742661038331,-38.18916527,0.00031511,2]
[356556309,1742661038341,-151.077,0.00031574,2]
[356556310,1742661038351,-543.571,0.00031574,2]
[356556311,1742661038361,-600.0,0.00031591,2]
[356556312,1742661038371,-662.216,0.00031598,2]
[356556313,1742661038382,-239.81799871,0.00031598,2]
[356556314,1742661038392,-2205.8705646,0.00031599,2]
[356556315,1742661038402,-207.68211964,0.00031599,2]
[356556316,1742661038413,-719.45399613,0.00031599,2]
[356556317,1742661038423,-353.79487779,0.000316,2]
[356556318,1742661038435,-269.25148113,0.000316,2]
[356556319,1742661038444,-2877.81598452,0.000316,2]
[356556320,1742661038456,-207.68211964,0.00031601,2]
[356556321,1742661038466,-959.27199484,0.00031601,2]
[356556322,1742661038479,-1155.13,0.00031607,2]
[356556323,1742661038489,-9197.07432981,0.00031607,2]
[356556392,1742661043285,-160.0,0.00031474,2]
[356556393,1742661043307,-46.01159091,0.00031574,2]
[356556399,1742661046182,-353.98840909,0.00031574,2]
[356556400,1742661046192,-1175.89858791,0.00031607,2]
[356556404,1742661052942,-216.27639552,0.0003,3]
[356556405,1742661053409,2387.40213428,0.00024953,2]
[356556406,1742661053432,1005.66054087,0.00024953,2]
[356556408,1742661064638,-200.0,0.00024953,2]
[356556410,1742661150353,-150.0,0.00024953,2]
[356556412,1742661427106,-176.22338134,0.00024703,2]
[356556413,1742661435084,-185.58708785,0.00024703,2]
[356556414,1742661484917,-269.3797874,0.000248,120]
[356556415,1742661541317,-177.298009,0.000245,120]
[356556416,1742661608310,-157.1510105,0.000243,120]
[356556417,1742661610361,-150.0,0.000243,120]
[356556418,1742661631471,-165.03549918,0.000242,120]
[356556421,1742661661114,-151.43978675,0.000241,120]
[356556423,1742661675030,-154.03588531,0.000245,120]
[356556424,1742661714157,-500.0,0.000245,120]
[356556426,1742661721821,-155.3917009,0.000244,120]
[356556427,1742661752033,-300.0,0.000243,120]
[356556429,1742661767413,-275.08581269,0.000245,120]
[356556430,1742661797575,-178.9976,0.00024211,2]
[356556431,1742661823834,-207.72381572,0.00024,7]
[356556432,1742661909938,-165.03549918,0.000239,120]
[356556433,1742661938845,-278.01943339,0.00021,120]
[356556435,1742662120805,-183.84304313,0.000232,120]
[356556436,1742662145161,-762.89283167,0.00023,120]
[356556437,1742662145184,-1193.67403302,0.00023969,2]
[356556438,1742662145206,-839.27519985,0.00024,7]
[356556439,1742662147085,-178.00098443,0.00024,7]
[356556440,1742662147105,-67.57802557,0.00027681,2]
[356556488,1742662238208,-183.84304313,0.00024953,2]
[356556489,1742662238220,-124.29024563,0.00027681,2]
[356556490,1742662238231,-4053.05732683,0.00027795,2]
[356556491,1742662238241,-569.30980071,0.000279,4]
[356556492,1742662238251,-569.30980049,0.00028141,5]
[356556493,1742662238261,-569.30980049,0.00028383,5]
[356556494,1742662238271,-206.6319914,0.0002845,2]
[356556495,1742662238281,-300.0,0.00028623,2]
[356556496,1742662238291,-190.35737983,0.00028624,5]
[356556541,1742662240679,-378.95242066,0.00028624,5]
[356556543,1742662240689,-458.6305,0.00028865,2]
[356556545,1742662240698,-569.30980049,0.00028866,5]
[356556547,1742662240707,-569.30980049,0.00029107,5]
[356556549,1742662240716,-151.94182633,0.000292,2]
[356556551,1742662240725,-569.30980049,0.00029348,5]
[356556553,1742662240734,-27.34898434,0.0002959,5]
[356556555,1742662240746,-541.96081615,0.0002959,5]
[356556557,1742662240755,-569.30980049,0.00029831,5]
[356556559,1742662240764,-78.27959164,0.00029898,2]
[356556562,1742662240776,-78.0380472,0.00029898,2]
[356556564,1742662240786,-1846.68184582,0.00029898,2]
[356556566,1742662240796,-397.07231281,0.00029996,2]
[356556568,1742662240806,-430.47751359,0.00029996,2]
[356556569,1742662240815,-363.24008576,0.00029996,2]
[356556571,1742662240825,-7585.5678821,0.00029997,7]
[356556573,1742662240835,-186.56439106,0.00029997,7]
[356556575,1742662240845,-1107.0,0.00029997,2]
[356556577,1742662240854,-31154.8,0.00029997,2]
[356556579,1742662240863,-7650.31,0.00029997,2]
[356556581,1742662240873,-2237.9,0.00029997,2]
[356556583,1742662240883,-500.0,0.00029997,2]
[356556585,1742662240892,-316.15697428,0.00029997,2]
[356556587,1742662240901,-2240.71,0.00029997,2]
[356556589,1742662240911,-2162.82,0.00029997,2]
[356556591,1742662240921,-531.01,0.00029997,2]
[356556593,1742662240935,-890.71,0.00029997,2]
[356556595,1742662240944,-1251.13,0.00029997,2]
[356556597,1742662240955,-548.24,0.00029997,2]
[356556599,1742662240964,-500.0,0.00029997,2]
[356556601,1742662240973,-3374.67,0.00029997,2]
[356556603,1742662240983,-500.0,0.00029997,2]
[356556613,1742662241067,-3531.66,0.00029997,2]
[356556615,1742662241076,-500.0,0.00029997,2]
[356556617,1742662241086,-830.03,0.00029997,2]
[356556619,1742662241095,-830.76,0.00029997,2]
[356556621,1742662241104,-500.0,0.00029997,2]
[356556623,1742662241113,-500.0,0.00029998,2]
[356556625,1742662241122,-500.0,0.00029998,2]
[356556628,1742662241132,-500.0,0.00029998,2]
[356556630,1742662241142,-1079.03,0.00029998,2]
[356556632,1742662241152,-500.0,0.00029998,2]
[356556634,1742662241161,-500.0,0.00029998,2]
[356556636,1742662241170,-500.0,0.00029998,2]
[356556638,1742662241179,-500.0,0.00029998,2]
[356556640,1742662241188,-500.0,0.00029998,2]
[356556642,1742662241198,-513.36,0.00029998,2]
[356556644,1742662241207,-5806.70838301,0.00029998,2]
[356556670,1742662241446,-0.00617979,0.00029998,2]
[356556672,1742662241458,-3910.92031945,0.00029998,2]
[356556676,1742662241481,-1041.44652036,0.00029998,2]
[356556764,1742662243452,-499.9967325,0.00029998,2]
[356556765,1742662243464,-35.16186489,0.00029998,2]
[356556766,1742662243474,-267.03823511,0.00029998,2]
[356556767,1742662243507,-232.96176489,0.00029998,2]
[356556768,1742662243516,-500.0,0.00029998,2]
[356556769,1742662243526,-500.0,0.00029998,2]
[356556770,1742662243535,-515.78,0.00029998,2]
[356556771,1742662243544,-299.1765231,0.00029998,2]
[356556772,1742662243553,-500.0,0.00029998,2]
[356556773,1742662243563,-200.0,0.00029998,2]
[356556774,1742662243573,-500.0,0.00029998,2]
[356556775,1742662243582,-3027.77,0.00029998,2]
[356556776,1742662243592,-500.0,0.00029998,2]
[356556777,1742662243601,-500.0,0.00029998,2]
[356556778,1742662243611,-500.0,0.00029998,2]
[356556779,1742662243621,-610.34,0.00029998,2]
[356556781,1742662243630,-500.0,0.00029998,2]
[356556782,1742662243639,-500.0,0.00029998,2]
[356556783,1742662243648,-500.0,0.00029998,2]
[356556784,1742662243658,-500.0,0.00029998,2]
[356556785,1742662243667,-635.85,0.00029998,2]
[356556786,1742662243676,-500.0,0.00029998,2]
[356556787,1742662243685,-500.0,0.00029998,2]
[356556788,1742662243694,-502.95498199,0.00029998,2]
[356556789,1742662243704,-500.0,0.00029998,2]
[356556790,1742662243713,-292.36708951,0.00029998,2]
[356556791,1742662243724,-504.82327195,0.00029998,2]
[356556792,1742662243733,-9878.35,0.00029998,2]
[356556793,1742662243743,-6569.05609546,0.00029998,2]
[356556794,1742662243762,-6464.05390454,0.00029998,2]
[356556795,1742662243772,-511.80294246,0.00029998,2]
[356556796,1742662243781,-512.56845464,0.00029998,2]
[356556797,1742662243790,-500.0,0.00029998,2]
[356556798,1742662243799,-500.0,0.00029998,2]
[356556799,1742662243809,-3459.44,0.00029998,2]
[356556800,1742662243818,-920.61,0.00029998,2]
[356556801,1742662243827,-585.18,0.00029998,2]
[356556802,1742662243837,-566.21,0.00029998,2]
[356556803,1742662243846,-243.63862514,0.00029998,2]
[356556804,1742662243855,-1475.64626962,0.00029998,2]
[356556805,1742662243867,-1000.0,0.00029998,2]
[356556806,1742662243878,-1022.12636978,0.00029998,2]
[356556807,1742662243889,-563.12518402,0.00029998,2]
[356556808,1742662243901,-4103.45217658,0.00029998,2]
[356556809,1742662243910,-500.0,0.00029998,2]
[356556810,1742662243920,-1821.03484437,0.00029998,2]
[356556870,1742662246463,-797.37923331,0.00029997,2]
[356556871,1742662246475,-50.68076669,0.00029997,2]
[356556872,1742662246484,-500.0,0.00029997,2]
[356556873,1742662246494,-2096.58515563,0.00029998,2]
[356556874,1742662246503,-1199.39,0.00029998,2]
[356556875,1742662246512,-500.0,0.00029998,2]
[356556876,1742662246521,-310.52688886,0.00029998,2]
[356556877,1742662246532,-447.37663214,0.00029998,2]
[356556879,1742662246543,-393.69,0.00029998,2]
[356556881,1742662246556,-488.03336786,0.00029998,2]
[356556883,1742662246568,-356.11643214,0.00029998,2]
[356556885,1742662246580,-143.88356786,0.00029998,2]
[356556887,1742662246589,-1197.25,0.00029998,2]
[356556889,1742662246599,-500.0,0.00029998,2]
[356556891,1742662246608,-500.0,0.00029998,2]
[356556893,1742662246617,-554.93,0.00029998,2]
[356556895,1742662246626,-507.34,0.00029998,2]
[356556897,1742662246635,-6595.28732404,0.00029998,2]
[356556909,1742662836451,200.0,0.000179,2]
[356556910,1742662848764,232.06,0.000179,2]
[356556911,1742663136112,-153.47131606,0.00027728,2]
[356556912,1742663191089,-96.52868394,0.00027728,2]
[356556913,1742663191112,-76.07985088,0.00027979,2]
[356556915,1742663362106,-24900.0,0.00027853,2]
[356556916,1742663362128,-86.97102412,0.00027979,2]
[356556917,1742663362148,-150.95302394,0.00028878,2]
[356556918,1742663362167,-1151.80881108,0.00028878,2]
[356556919,1742663362188,-150.95302394,0.00028878,2]
[356556920,1742663362208,-150.95302394,0.00028879,2]
[356556921,1742663362227,-150.95302394,0.00028879,2]
[356556922,1742663362247,-150.95302394,0.00028879,2]
[356556923,1742663362270,-460.45162303,0.000289,5]
[356556924,1742663362293,-834.31595416,0.00028958,2]
[356556925,1742663362312,-160.0,0.00028962,2]
[356556926,1742663362334,-600.0,0.00028963,2]
[356556927,1742663362356,-303.19075308,0.00028968,2]
[356556928,1742663362375,-505.3179218,0.00028969,2]
[356556929,1742663362396,-300.0,0.00028975,2]
[356556930,1742663362416,-501.91983566,0.00028976,2]
[356556931,1742663362435,-325.32900492,0.00028976,2]
[356556932,1742663362457,-500.0,0.00028976,2]
[356556933,1742663362477,-401.62018262,0.00028976,2]
[356556934,1742663362498,-500.0,0.00028976,2]
[356556935,1742663362519,-500.0,0.00028976,2]
[356556936,1742663362540,-500.0,0.00028976,2]
[356556937,1742663362561,-424.606084,0.00028976,2]
[356556938,1742663362581,-500.0,0.00028976,2]
[356556939,1742663362602,-500.0,0.00028976,2]
[356556940,1742663362623,-273.42610783,0.00028976,2]
[356556941,1742663362643,-1060.88,0.00028976,2]
[356556942,1742663362662,-29856.68,0.00028976,2]
[356556943,1742663362682,-2144.65,0.00028976,2]
[356556944,1742663362702,-7331.54,0.00028976,2]
[356556945,1742663362722,-500.0,0.00028977,2]
[356556946,1742663362742,-18640.0,0.00028977,2]
[356556947,1742663362762,-2147.35,0.00028977,2]
[356556948,1742663362782,-2269.32,0.00028977,2]
[356556949,1742663362802,-508.89,0.00028977,2]
[356556950,1742663362823,-1199.0,0.00028977,2]
[356556951,1742663362842,-3234.06,0.00028977,2]
[356556952,1742663362863,-3384.51,0.00028977,2]
[356556953,1742663362883,-796.14,0.00028977,2]
[356556954,1742663362902,-8529.85434788,0.00028977,2]
[356556984,1742663432758,-600.0,0.00028962,2]
[356556985,1742663432769,-500.0,0.00028973,5]
[356556986,1742663432779,-500.0,0.00028973,5]
[356556987,1742663432790,-500.0,0.00028973,5]
[356556988,1742663432802,-500.0,0.00028973,5]
[356557003,1742663433094,-500.0,0.00028973,5]
[356557005,1742663433104,-300.0,0.00028975,2]
[356557007,1742663433113,-500.0,0.00028975,2]
[356557009,1742663433123,-252.60290087,0.00028975,2]
[356557010,1742663433132,-158.28956489,0.00028975,2]
[356557011,1742663433142,-500.0,0.00028976,2]
[356557012,1742663433151,-17863.33,0.00028976,2]
[356557013,1742663433161,-1699.98,0.00028976,2]
[356557014,1742663433170,-2174.77,0.00028976,2]
[356557015,1742663433180,-500.0,0.00028976,2]
[356557016,1742663433189,-853.59,0.00028976,2]
[356557017,1742663433199,-1149.04,0.00028976,2]
[356557018,1742663433208,-500.0,0.00028976,2]
[356557019,1742663433218,-525.39,0.00028976,2]
[356557020,1742663433227,-3243.49,0.00028976,2]
[356557021,1742663433237,-2293.78565212,0.00028977,2]
[356557022,1742663433247,-500.0,0.00028977,2]
[356557023,1742663433257,-604.5,0.00028977,2]
[356557024,1742663433267,-500.0,0.00028977,2]
[356557025,1742663433277,-12490.06,0.00028977,2]
[356557026,1742663433287,-500.0,0.00028977,2]
[356557027,1742663433298,-500.0,0.00028977,2]
[356557028,1742663433308,-9466.75,0.00028977,2]
[356557029,1742663433323,-7824.17,0.00028977,2]
[356557030,1742663433335,-3315.3,0.00028977,2]
[356557031,1742663433345,-500.0,0.00028977,2]
[356557032,1742663433354,-1273.72,0.00028977,2]
[356557033,1742663433364,-882.25,0.00028977,2]
[356557034,1742663433376,-3754.39,0.00028977,2]
[356557035,1742663433386,-531.81,0.00028977,2]
[356557036,1742663433396,-1149.42,0.00028977,2]
[356557037,1742663433406,-500.0,0.00028977,2]
[356557038,1742663433415,-500.0,0.00028977,2]
[356557039,1742663433426,-500.0,0.00028977,2]
[356557040,1742663433436,-500.0,0.00028977,2]
[356557041,1742663433446,-500.0,0.00028977,2]
[356557042,1742663433460,-500.0,0.00028977,2]
[356557043,1742663433469,-897.58,0.00028977,2]
[356557044,1742663433479,-32758.67,0.00028977,2]
[356557045,1742663433490,-2758.0,0.00028977,2]
[356557046,1742663433499,-500.0,0.00028977,2]
[356557047,1742663433510,-1299.5,0.00028977,2]
[356557048,1742663433520,-743.66,0.00028977,2]
[356557049,1742663433529,-1742.54,0.00028977,2]
[356557050,1742663433540,-871.23,0.00028977,2]
[356557051,1742663433550,-1199.19,0.00028977,2]
[356557052,1742663433560,-6905.37,0.00028977,2]
[356557053,1742663433570,-6522.01,0.00028977,2]
[356557054,1742663433580,-3792.78394105,0.00028978,7]
[356557055,1742663433589,-48249.82801788,0.00028978,7]
[356557056,1742663433600,-500.0,0.00028978,2]
[356557057,1742663433610,-500.0,0.00028978,2]
[356557058,1742663433621,-500.0,0.00028978,2]
[356557059,1742663433632,-500.0,0.00028978,2]
[356557060,1742663433642,-1034.07,0.00028978,2]
[356557061,1742663433653,-500.0,0.00028978,2]
[356557062,1742663433663,-500.0,0.00028978,2]
[356557063,1742663433673,-500.0,0.00028978,2]
[356557064,1742663433683,-500.0,0.00028978,2]
[356557065,1742663433692,-795.45,0.00028978,2]
[356557066,1742663433702,-500.0,0.00028978,2]
[356557067,1742663433711,-516.41777944,0.00028978,2]
[356557068,1742663433721,-500.0,0.00028978,2]
[356557069,1742663433731,-500.0,0.00028978,2]
[356557070,1742663433742,-812.72,0.00028978,2]
[356557071,1742663433752,-500.0,0.00028978,2]
[356557072,1742663433762,-535.48,0.00028978,2]
[356557073,1742663433772,-683.8,0.00028978,2]
[356557074,1742663433783,-500.0,0.00028978,2]
[356557075,1742663433793,-977.14,0.00028978,2]
[356557076,1742663433802,-500.0,0.00028978,2]
[356557077,1742663433812,-500.0,0.00028978,2]
[356557078,1742663433821,-638.76,0.00028978,2]
[356557079,1742663433830,-500.0,0.00028978,2]
[356557080,1742663433839,-500.0,0.00028978,2]
[356557081,1742663433849,-500.0,0.00028978,2]
[356557082,1742663433859,-500.0,0.00028978,2]
[356557083,1742663433868,-1370.25,0.00028978,2]
[356557084,1742663433878,-500.0,0.00028978,2]
[356557085,1742663433888,-500.0,0.00028978,2]
[356557086,1742663433897,-500.0,0.00028978,2]
[356557087,1742663433906,-500.0,0.00028978,2]
[356557088,1742663433916,-200.0,0.00028978,2]
[356557089,1742663433925,-500.0,0.00028978,2]
[356557090,1742663433934,-500.0,0.00028978,2]
[356557091,1742663433943,-500.0,0.00028978,2]
[356557092,1742663433953,-584.91,0.00028978,2]
[356557093,1742663433962,-862.96,0.00028978,2]
[356557094,1742663433972,-500.0,0.00028978,2]
[356557095,1742663433981,-609.36,0.00028978,2]
[356557096,1742663433991,-1093.87,0.00028978,2]
[356557097,1742663434000,-559.72,0.00028978,2]
[356557098,1742663434010,-500.0,0.00028978,2]
[356557099,1742663434020,-542.62,0.00028978,2]
[356557100,1742663434030,-1052.72,0.00028978,2]
[356557101,1742663434039,-1013.85,0.00028978,2]
[356557102,1742663434050,-500.0,0.00028978,2]
[356557103,1742663434060,-560.8,0.00028978,2]
[356557104,1742663434069,-500.0,0.00028978,2]
[356557105,1742663434079,-500.0,0.00028978,2]
[356557106,1742663434089,-1048.04,0.00028978,2]
[356557107,1742663434099,-500.0,0.00028978,2]
[356557108,1742663434108,-486.65867266,0.00028978,2]
[356557109,1742663434118,-1294.63,0.00028978,2]
[356557110,1742663434127,-921.1,0.00028978,2]
[356557111,1742663434138,-500.0,0.00028978,2]
[356557112,1742663434148,-500.0,0.00028978,2]
[356557113,1742663434158,-500.0,0.00028978,2]
[356557114,1742663434168,-1147.37,0.00028978,2]
[356557115,1742663434178,-500.0,0.00028978,2]
[356557116,1742663434187,-982.44,0.00028978,2]
[356557117,1742663434197,-658.88,0.00028978,2]
[356557118,1742663434206,-1004.08,0.00028978,2]
[356557119,1742663434216,-527.72,0.00028978,2]
[356557120,1742663434226,-1000.78,0.00028978,2]
[356557121,1742663434235,-500.0,0.00028978,2]
[356557122,1742663434245,-1381.3,0.00028978,2]
[356557123,1742663434254,-2465.08,0.00028978,2]
[356557124,1742663434264,-1011.96,0.00028978,2]
[356557125,1742663434274,-500.0,0.00028978,2]
[356557126,1742663434283,-766.08,0.00028978,2]
[356557127,1742663434298,-500.0,0.00028978,2]
[356557128,1742663434308,-500.0,0.00028978,2]
[356557129,1742663434317,-500.0,0.00028978,2]
[356557130,1742663434327,-500.0,0.00028978,2]
[356557131,1742663434337,-500.0,0.00028978,2]
[356557132,1742663434347,-500.0,0.00028978,2]
[356557133,1742663434357,-500.0,0.00028978,2]
[356557134,1742663434367,-500.0,0.00028978,2]
[356557135,1742663434377,-500.0,0.00028978,2]
[356557136,1742663434387,-500.0,0.00028978,2]
[356557137,1742663434396,-825.18,0.00028978,2]
[356557138,1742663434406,-248.87728709,0.00028978,2]
[356557139,1742663434415,-500.0,0.00028978,2]
[356557140,1742663434425,-500.0,0.00028978,2]
[356557141,1742663434435,-1171.15,0.00028978,2]
[356557142,1742663434444,-3116.14390377,0.00028978,120]
[356557143,1742663434454,-500.0,0.00028978,2]
[356557144,1742663434463,-500.0,0.00028978,2]
[356557145,1742663434473,-500.0,0.00028978,2]
[356557146,1742663434483,-1331.79,0.00028978,2]
[356557147,1742663434492,-650.28,0.00028978,2]
[356557148,1742663434502,-500.0,0.00028978,2]
[356557149,1742663434512,-500.0,0.00028978,2]
[356557150,1742663434521,-516.83,0.00028978,2]
[356557151,1742663434531,-542.46189015,0.00028978,2]
[356557152,1742663434541,-784.29,0.00028978,2]
[356557153,1742663434551,-1200.74,0.00028978,2]
[356557154,1742663434560,-500.0,0.00028978,2]
[356557155,1742663434570,-541.43,0.00028978,2]
[356557156,1742663434579,-500.0,0.00028978,2]
[356557157,1742663434589,-500.0,0.00028978,2]
[356557158,1742663434599,-531.99,0.00028978,2]
[356557159,1742663434608,-793.7,0.00028978,2]
[356557160,1742663434617,-500.0,0.00028978,2]
[356557161,1742663434627,-5854.66,0.00028978,2]
[356557162,1742663434637,-577.76,0.00028978,2]
[356557163,1742663434647,-1313.0,0.00028978,2]
[356557164,1742663434656,-500.0,0.00028978,2]
[356557165,1742663434666,-500.0,0.00028978,2]
[356557166,1742663434675,-500.0,0.00028978,2]
[356557167,1742663434685,-700.39,0.00028978,2]
[356557168,1742663434695,-781.36,0.00028978,2]
[356557169,1742663434705,-452.39741999,0.00028978,2]
[356557170,1742663434714,-500.0,0.00028978,2]
[356557171,1742663434725,-2329.3,0.00028978,2]
[356557172,1742663434735,-699.78,0.00028978,2]
[356557173,1742663434745,-500.0,0.00028978,2]
[356557174,1742663434754,-500.0,0.00028978,2]
[356557175,1742663434764,-500.0,0.00028978,2]
[356557176,1742663434773,-4491.53,0.00028978,2]
[356557177,1742663434783,-500.0,0.00028978,2]
[356557178,1742663434792,-500.0,0.00028978,2]
[356557179,1742663434801,-500.0,0.00028978,2]
[356557180,1742663434811,-1380.27,0.00028978,2]
[356557181,1742663434820,-620.72,0.00028978,2]
[356557182,1742663434829,-500.0,0.00028978,2]
[356557183,1742663434839,-500.0,0.00028978,2]
[356557184,1742663434848,-500.0,0.00028978,2]
[356557185,1742663434857,-799.68,0.00028978,2]
[356557186,1742663434866,-1081.25,0.00028978,2]
[356557187,1742663434875,-212.80588167,0.00028978,2]
[356557188,1742663434886,-500.0,0.00028978,2]
[356557189,1742663434896,-1887.997091,0.00028978,2]
[356557190,1742663434906,-500.0,0.00028978,2]
[356557191,1742663434918,-500.0,0.00028978,2]
[356557192,1742663434928,-1887.997091,0.00028978,2]
[356557193,1742663434937,-1887.997091,0.00028978,2]
[356557194,1742663434947,-1887.997091,0.00028978,2]
[356557195,1742663434956,-1887.997091,0.00028978,2]
[356557196,1742663434966,-1887.997091,0.00028978,2]
[356557197,1742663434975,-576.55,0.00028978,2]
[356557198,1742663434985,-1887.997091,0.00028978,2]
[356557199,1742663434994,-1887.997091,0.00028978,2]
[356557200,1742663435003,-1887.997091,0.00028978,2]
[356557201,1742663435013,-1887.997091,0.00028978,2]
[356557202,1742663435022,-1887.997091,0.00028978,2]
[356557203,1742663435032,-1887.997091,0.00028978,2]
[356557204,1742663435043,-1887.997091,0.00028978,2]
[356557205,1742663435053,-1887.997091,0.00028978,2]
[356557206,1742663435062,-1887.997091,0.00028978,2]
[356557207,1742663435071,-749.46,0.00028978,2]
[356557208,1742663435081,-1887.997091,0.00028978,2]
[356557209,1742663435090,-500.0,0.00028978,2]
[356557210,1742663435100,-952.35,0.00028978,2]
[356557211,1742663435112,-531.67370498,0.00028978,2]
[356557212,1742663435123,-500.0,0.00028978,2]
[356557213,1742663435132,-500.0,0.00028978,2]
[356557214,1742663435141,-1235.92,0.00028978,2]
[356557215,1742663435151,-500.0,0.00028978,2]
[356557216,1742663435160,-500.0,0.00028978,2]
[356557217,1742663435169,-2055.62,0.00028978,2]
[356557218,1742663435178,-1516.86,0.00028978,2]
[356557219,1742663435187,-566.94,0.00028978,2]
[356557220,1742663435196,-1241.96,0.00028978,2]
[356557221,1742663435205,-557.13,0.00028978,2]
[356557222,1742663435214,-500.0,0.00028978,2]
[356557223,1742663435224,-619.73476465,0.00028978,2]
[356557224,1742663435234,-1117.87,0.00028978,2]
[356557225,1742663435243,-552.83,0.00028978,2]
[356557226,1742663435253,-500.0,0.00028978,2]
[356557227,1742663435262,-500.0,0.00028978,2]
[356557228,1742663435272,-3636.46,0.00028978,2]
[356557229,1742663435281,-2063.47,0.00028978,2]
[356557230,1742663435292,-958.92,0.00028978,2]
[356557231,1742663435304,-500.0,0.00028978,2]
[356557232,1742663435313,-500.0,0.00028978,2]